Workbook

Sheet Opening Values
B2: Calculating Opening Values | D2: RPI | E2: 2006-09-01 | F2: 200.1
E3: 2010-09-01 | F3: 225.3
E4: 2011-09-01 | F4: 237.9
E5: 2012-09-01 | F5: 244.2
B9: Opening DAV/TRV (2014)
B10: £2012 | D10: 2013
D11: £'000s
B12: DAV | D12: =DAV!F32 -> 390529.0665
B13: Q | D13: -4114.922381
B14: CC | D14: -4432.662282
B15: PA | D15: =111809.438314822*rpi_12/rpi_10 -> 121188.9252
B16: TRV Retrospective Adjustments | D16: 418.4998312
B18: TRV | D18: =SUM(D12:D16) -> 503588.9069
B20: N.B. for GD14 this TRV of £503.6m is as per Final Document Paragraph 10.40:
B22: http://www.uregni.gov.uk/uploads/publications/2013-12-20_GD14_Price_Control_for_NI_GDNs_2014-2016_Final_Determination.pdf
B24: 5-year Allowed Capex Overspend | C24: £'000s
B25: £2006 | C25: 2012 | D25: 2013 | E25: 2014 | F25: 2015 | G25: 2016
B26: Inclusions of overspend in DAVt | C26: =0/1000 -> 0 | D26: =0/1000 -> 0 | E26: =299551.037728997/1000 -> 299.5510377 | F26: =480869.248089519/1000 -> 480.8692481 | G26: =270457.265233916/1000 -> 270.4572652
B27: remaining average life | C27: 0 | D27: 0 | E27: 24 | F27: 25 | G27: 22
B29: For detail on the Rolling Capex Incentive please see Appendix 5 of:
B31: http://www.uregni.gov.uk/uploads/publications/PNGL12_Final_Decisions_FINAL.pdf

Sheet DAV
A1: Condition 2.3.17 Calculation of DAV
C2: £2012
C3: £'000
J5: IMPORTANT NOTE: Total Capex and Breakdown from 2017 Onwards are forecasts and will be determined as part of the Next Price Control.
D6: 2011 | E6: 2012 | F6: 2013 | G6: 2014 | H6: 2015 | I6: 2016 | J6: 2017 | K6: 2018 | L6: 2019 | M6: 2020 | N6: 2021 | O6: 2022 | P6: 2023 | Q6: 2024 | R6: 2025 | S6: 2026 | T6: 2027 | U6: 2028 | V6: 2029 | W6: 2030 | X6: 2031 | Y6: 2032 | Z6: 2033 | AA6: 2034 | AB6: 2035 | AC6: 2036 | AD6: 2037 | AE6: 2038 | AF6: 2039 | AG6: 2040 | AH6: 2041 | AI6: 2042 | AJ6: 2043 | AK6: 2044 | AL6: 2045 | AM6: 2046
A8: Opening DAV (Incl Rolling Capex Incentive) | E8: =D32+'Opening Values'!C26*rpi_12/rpi_06 -> 388965.431 | F8: =E32+'Opening Values'!D26*rpi_12/rpi_06 -> 390258.6553 | G8: =F32+'Opening Values'!E26*rpi_12/rpi_06 -> 390894.6356 | H8: =G32+'Opening Values'!F26*rpi_12/rpi_06 -> 391371.8488 | I8: =H32+'Opening Values'!G26*rpi_12/rpi_06 -> 391428.9016 | J8: =I32 -> 390605.6985 | K8: 391024.4475 | L8: 390836.256 | M8: 389125.177 | N8: 389406.832 | O8: 386636.793 | P8: 384717.0333 | Q8: 384096.9546 | R8: 378871.9842 | S8: 372894.3936 | T8: 365674.3169 | U8: 357856.4467 | V8: 348889.781 | W8: 339742.8433 | X8: 330168.9522 | Y8: 320743.198 | Z8: 311329.8134 | AA8: 301363.5079 | AB8: 291085.0249 | AC8: 280592.8613 | AD8: 269873.8813 | AE8: 254667.9883 | AF8: 239641.9391 | AG8: 224753.092 | AH8: 209955.8259 | AI8: 195134.135 | AJ8: 180323.5536 | AK8: 165469.6364 | AL8: 150582.6731 | AM8: 135654.3953
A10: Capex
A11: Mains | E11: 2661.643291 | F11: 2662.801907 | G11: 2703.096283 | H11: 2784.998509 | I11: 2695.987571 | J11: 2757.688307 | K11: 2798.48474 | L11: 1605.95485 | M11: 4098.55485 | N11: 1950.311892 | O11: 1416.198371 | P11: 3366.561892 | Q11: 1327.161892 | R11: 1327.161892 | S11: 1327.161892 | T11: 1327.161892 | U11: 1327.161892 | V11: 1327.161892 | W11: 1327.161892 | X11: 1327.161892 | Y11: 1327.161892 | Z11: 1327.161892 | AA11: 1327.161892 | AB11: 1327.161892 | AC11: 1327.161892 | AD11: 1327.161892 | AE11: 1327.161892 | AF11: 1327.161892 | AG11: 1327.161892 | AH11: 1327.161892 | AI11: 1327.161892 | AJ11: 1327.161892 | AK11: 1327.161892 | AL11: 1327.161892 | AM11: 1327.161892
A12: Services | E12: 4887.380262 | F12: 4406.487702 | G12: 6339.886 | H12: 6434.386 | I12: 6509.986 | J12: 6304.342421 | K12: 6304.587108 | L12: 6439.159392 | M12: 6439.412521 | N12: 6196.55971 | O12: 6196.790846 | P12: 6197.01891 | Q12: 5343.236121 | R12: 5343.385788 | S12: 5343.533916 | T12: 5343.680572 | U12: 5343.825816 | V12: 5343.96971 | W12: 5344.112311 | X12: 5344.253676 | Y12: 5344.393856 | Z12: 5344.532905 | AA12: 5344.67087 | AB12: 5344.8078 | AC12: 5344.94374 | AD12: 2153.067895 | AE12: 2153.201983 | AF12: 2153.335208 | AG12: 2153.467606 | AH12: 2153.599216 | AI12: 2153.730072 | AJ12: 2153.860209 | AK12: 2153.860209 | AL12: 2153.860209 | AM12: 2153.860209
A13: Meters | E13: 2458.15 | F13: 2332.913871 | G13: 2640.608 | H13: 2769.881 | I13: 2692.34 | J13: 4678.768501 | K13: 4609.321779 | L13: 4818.134183 | M13: 4957.553914 | N13: 4924.534204 | O13: 7009.755756 | P13: 7115.737086 | Q13: 6101.16994 | R13: 5950.080888 | S13: 5263.349922 | T13: 5042.733509 | U13: 4224.951204 | V13: 4364.48812 | W13: 4240.46268 | X13: 4729.291386 | Y13: 4965.689792 | Z13: 4618.271874 | AA13: 4489.068378 | AB13: 4446.215811 | AC13: 4388.592274 | AD13: 3269.273035 | AE13: 3268.127245 | AF13: 3326.080885 | AG13: 3324.941274 | AH13: 3273.636637 | AI13: 3272.503177 | AJ13: 3271.372783 | AK13: 3271.372783 | AL13: 3271.372783 | AM13: 3271.372783
A14: Other | E14: 3175.659171 | F14: 3185.449655 | G14: 988.7246197 | H14: 1006.431696 | I14: 1020.597357 | J14: 1006.203073 | K14: 1010.307185 | L14: 904.5114241 | M14: 904.536737 | N14: 852.3721601 | O14: 852.3952737 | P14: 852.4180802 | Q14: 767.0398012 | R14: 767.054768 | S14: 767.0695808 | T14: 767.0842464 | U14: 767.0987708 | V14: 767.1131602 | W14: 767.1274203 | X14: 767.1415567 | Y14: 767.1555748 | Z14: 767.1694796 | AA14: 767.1832762 | AB14: 767.1969692 | AC14: 767.2105632 | AD14: 448.0229787 | AE14: 448.0363875 | AF14: 448.04971 | AG14: 448.0629498 | AH14: 448.0761108 | AI14: 448.0891964 | AJ14: 448.1022101 | AK14: 448.1022101 | AL14: 448.1022101 | AM14: 448.1022101
A15: Total Capex | E15: =SUM(E11:E14) -> 13182.83272 | F15: 12587.65314 | G15: =SUM(G11:G14) -> 12672.3149 | H15: 12995.6972 | I15: 12918.91093 | J15: 14747.0023 | K15: 14722.70081 | L15: 13767.75985 | M15: 16400.05802 | N15: 13923.77797 | O15: 15475.14025 | P15: 17531.73597 | Q15: 13538.60775 | R15: 13387.68334 | S15: 12701.11531 | T15: 12480.66022 | U15: 11663.03768 | V15: 11802.73288 | W15: 11678.8643 | X15: 12167.84851 | Y15: 12404.40112 | Z15: 12057.13615 | AA15: 11928.08442 | AB15: 11885.38247 | AC15: 11827.90847 | AD15: 7197.5258 | AE15: 7196.527508 | AF15: 7254.627695 | AG15: 7253.633722 | AH15: 7202.473856 | AI15: 7201.484338 | AJ15: 7200.497094 | AK15: 7200.497094 | AL15: 7200.497094 | AM15: 7200.497094
A17: Annual depreciation of additional capex
A18: Mains (40 years straight line) | E18: =E11/40 -> 66.54108228 | F18: 66.57004768 | G18: =G11/40 -> 67.57740707 | H18: 69.62496272 | I18: 67.39968928 | J18: 68.94220768 | K18: 69.9621185 | L18: 40.14887124 | M18: 102.4638712 | N18: 48.7577973 | O18: 35.40495929 | P18: 84.1640473 | Q18: 33.1790473 | R18: 33.1790473 | S18: 33.1790473 | T18: 33.1790473 | U18: 33.1790473 | V18: 33.1790473 | W18: 33.1790473 | X18: 33.1790473 | Y18: 33.1790473 | Z18: 33.1790473 | AA18: 33.1790473 | AB18: 33.1790473 | AC18: 33.1790473 | AD18: 33.1790473 | AE18: 33.1790473 | AF18: 33.1790473 | AG18: 33.1790473 | AH18: 33.1790473 | AI18: 33.1790473 | AJ18: 33.1790473 | AK18: 33.1790473 | AL18: 33.1790473 | AM18: 33.1790473
A19: Services (35 years straight line) | E19: =E12/35 -> 139.6394361 | F19: 125.8996486 | G19: 181.1396 | H19: 183.8396 | I19: 185.9996 | J19: =J12/35 -> 180.1240692 | K19: 180.1310602 | L19: 183.9759826 | M19: 183.9832149 | N19: 177.0445631 | O19: 177.051167 | P19: 177.0576831 | Q19: 152.6638892 | R19: 152.6681654 | S19: 152.6723976 | T19: 152.6765878 | U19: 152.6807376 | V19: 152.6848489 | W19: 152.6889232 | X19: 152.6929622 | Y19: 152.6969673 | Z19: 152.7009401 | AA19: 152.704882 | AB19: 152.7087943 | AC19: 152.7126783 | AD19: 61.51622556 | AE19: 61.52005667 | AF19: 61.52386308 | AG19: 61.52764589 | AH19: 61.53140617 | AI19: 61.53514492 | AJ19: 61.53886311 | AK19: 61.53886311 | AL19: 61.53886311 | AM19: 61.53886311
A20: Meters (15 years straight line) | E20: =E13/15 -> 163.8766667 | F20: 155.5275914 | G20: 176.0405333 | H20: 184.6587333 | I20: 179.4893333 | J20: 311.9179001 | K20: 307.2881186 | L20: 321.2089455 | M20: 330.5035943 | N20: 328.3022802 | O20: 467.3170504 | P20: 474.3824724 | Q20: 406.7446627 | R20: 396.6720592 | S20: 350.8899948 | T20: 336.1822339 | U20: 281.6634136 | V20: 290.9658746 | W20: 282.697512 | X20: 315.2860924 | Y20: 331.0459861 | Z20: 307.8847916 | AA20: 299.2712252 | AB20: 296.4143874 | AC20: 292.5728183 | AD20: 217.9515356 | AE20: 217.8751497 | AF20: 221.7387257 | AG20: 221.6627516 | AH20: 218.2424425 | AI20: 218.1668785 | AJ20: 218.0915189 | AK20: 218.0915189 | AL20: 218.0915189 | AM20: 218.0915189
A21: Other (40 years straight line) | E21: =E14/40 -> 79.39147927 | F21: 79.63624138 | G21: 24.71811549 | H21: 25.1607924 | I21: 25.51493393 | J21: 25.15507682 | K21: 25.25767962 | L21: 22.6127856 | M21: 22.61341843 | N21: 21.309304 | O21: 21.30988184 | P21: 21.310452 | Q21: 19.17599503 | R21: 19.1763692 | S21: 19.17673952 | T21: 19.17710616 | U21: 19.17746927 | V21: 19.177829 | W21: 19.17818551 | X21: 19.17853892 | Y21: 19.17888937 | Z21: 19.17923699 | AA21: 19.1795819 | AB21: 19.17992423 | AC21: 19.18026408 | AD21: 11.20057447 | AE21: 11.20090969 | AF21: 11.20124275 | AG21: 11.20157375 | AH21: 11.20190277 | AI21: 11.20222991 | AJ21: 11.20255525 | AK21: 11.20255525 | AL21: 11.20255525 | AM21: 11.20255525
A23: Depreciation | E23: =B24 -> 34 | F23: =E23-1 -> 33 | G23: =F23-1 -> 32 | H23: 31 | I23: 30 | J23: 29 | K23: 28 | L23: 27 | M23: 26 | N23: 25 | O23: 24 | P23: 23 | Q23: 22 | R23: 21 | S23: 20 | T23: 19 | U23: 18 | V23: 17 | W23: 16 | X23: 15 | Y23: 14 | Z23: 13 | AA23: 12 | AB23: 11 | AC23: 10 | AD23: 9 | AE23: 8 | AF23: 7 | AG23: 6 | AH23: 5 | AI23: 4 | AJ23: 3 | AK23: 2 | AL23: 1 | AM23: 0
A24: Distribution asset (average life remaining) | B24: 34 | E24: =IF(E23>0,$D$32/$E$23,0) -> 11440.15974 | F24: 11440.15974 | G24: 11440.15974 | H24: 11440.15974 | I24: 11440.15974 | J24: 11440.15974 | K24: 11440.15974 | L24: 11440.15974 | M24: 11440.15974 | N24: 11440.15974 | O24: 11440.15974 | P24: 11440.15974 | Q24: 11440.15974 | R24: 11440.15974 | S24: 11440.15974 | T24: 11440.15974 | U24: 11440.15974 | V24: 11440.15974 | W24: 11440.15974 | X24: 11440.15974 | Y24: 11440.15974 | Z24: 11440.15974 | AA24: 11440.15974 | AB24: 11440.15974 | AC24: 11440.15974 | AD24: 11440.15974 | AE24: 11440.15974 | AF24: 11440.15974 | AG24: 11440.15974 | AH24: 11440.15974 | AI24: 11440.15974 | AJ24: 11440.15974 | AK24: 11440.15974 | AL24: 11440.15974 | AM24: =IF(AM23>0,($D$32-$E$24-$F$24)/$G$23,0) -> 0
A25: Total Allowed Capex Overspend (average life remaining) | G25: =('Opening Values'!$E$26*rpi_12/rpi_06)/'Opening Values'!$E$27 -> 15.23204302 | H25: =('Opening Values'!$E$26*rpi_12/rpi_06)/'Opening Values'!$E$27+('Opening Values'!$F$26*rpi_12/rpi_06)/'Opening Values'!$F$27 -> 38.70596014 | I25: =('Opening Values'!$E$26*rpi_12/rpi_06)/'Opening Values'!$E$27+('Opening Values'!$F$26*rpi_12/rpi_06)/'Opening Values'!$F$27+('Opening Values'!$G$26*rpi/rpi_06)/'Opening Values'!$G$27 -> 53.70883692 | J25: =('Opening Values'!$E$26*rpi_12/rpi_06)/'Opening Values'!$E$27+('Opening Values'!$F$26*rpi_12/rpi_06)/'Opening Values'!$F$27+('Opening Values'!$G$26*rpi/rpi_06)/'Opening Values'!$G$27 -> 53.70883692 | K25: =('Opening Values'!$E$26*rpi_12/rpi_06)/'Opening Values'!$E$27+('Opening Values'!$F$26*rpi_12/rpi_06)/'Opening Values'!$F$27+('Opening Values'!$G$26*rpi/rpi_06)/'Opening Values'!$G$27 -> 53.70883692 | L25: =('Opening Values'!$E$26*rpi_12/rpi_06)/'Opening Values'!$E$27+('Opening Values'!$F$26*rpi_12/rpi_06)/'Opening Values'!$F$27+('Opening Values'!$G$26*rpi/rpi_06)/'Opening Values'!$G$27 -> 53.70883692 | M25: =('Opening Values'!$E$26*rpi_12/rpi_06)/'Opening Values'!$E$27+('Opening Values'!$F$26*rpi_12/rpi_06)/'Opening Values'!$F$27+('Opening Values'!$G$26*rpi/rpi_06)/'Opening Values'!$G$27 -> 53.70883692 | N25: =('Opening Values'!$E$26*rpi_12/rpi_06)/'Opening Values'!$E$27+('Opening Values'!$F$26*rpi_12/rpi_06)/'Opening Values'!$F$27+('Opening Values'!$G$26*rpi/rpi_06)/'Opening Values'!$G$27 -> 53.70883692 | O25: =('Opening Values'!$E$26*rpi_12/rpi_06)/'Opening Values'!$E$27+('Opening Values'!$F$26*rpi_12/rpi_06)/'Opening Values'!$F$27+('Opening Values'!$G$26*rpi/rpi_06)/'Opening Values'!$G$27 -> 53.70883692 | P25: =('Opening Values'!$E$26*rpi_12/rpi_06)/'Opening Values'!$E$27+('Opening Values'!$F$26*rpi_12/rpi_06)/'Opening Values'!$F$27+('Opening Values'!$G$26*rpi/rpi_06)/'Opening Values'!$G$27 -> 53.70883692 | Q25: =('Opening Values'!$E$26*rpi_12/rpi_06)/'Opening Values'!$E$27+('Opening Values'!$F$26*rpi_12/rpi_06)/'Opening Values'!$F$27+('Opening Values'!$G$26*rpi/rpi_06)/'Opening Values'!$G$27 -> 53.70883692 | R25: =('Opening Values'!$E$26*rpi_12/rpi_06)/'Opening Values'!$E$27+('Opening Values'!$F$26*rpi_12/rpi_06)/'Opening Values'!$F$27+('Opening Values'!$G$26*rpi/rpi_06)/'Opening Values'!$G$27 -> 53.70883692 | S25: =('Opening Values'!$E$26*rpi_12/rpi_06)/'Opening Values'!$E$27+('Opening Values'!$F$26*rpi_12/rpi_06)/'Opening Values'!$F$27+('Opening Values'!$G$26*rpi/rpi_06)/'Opening Values'!$G$27 -> 53.70883692 | T25: =('Opening Values'!$E$26*rpi_12/rpi_06)/'Opening Values'!$E$27+('Opening Values'!$F$26*rpi_12/rpi_06)/'Opening Values'!$F$27+('Opening Values'!$G$26*rpi/rpi_06)/'Opening Values'!$G$27 -> 53.70883692 | U25: =('Opening Values'!$E$26*rpi_12/rpi_06)/'Opening Values'!$E$27+('Opening Values'!$F$26*rpi_12/rpi_06)/'Opening Values'!$F$27+('Opening Values'!$G$26*rpi/rpi_06)/'Opening Values'!$G$27 -> 53.70883692 | V25: =('Opening Values'!$E$26*rpi_12/rpi_06)/'Opening Values'!$E$27+('Opening Values'!$F$26*rpi_12/rpi_06)/'Opening Values'!$F$27+('Opening Values'!$G$26*rpi/rpi_06)/'Opening Values'!$G$27 -> 53.70883692 | W25: =('Opening Values'!$E$26*rpi_12/rpi_06)/'Opening Values'!$E$27+('Opening Values'!$F$26*rpi_12/rpi_06)/'Opening Values'!$F$27+('Opening Values'!$G$26*rpi/rpi_06)/'Opening Values'!$G$27 -> 53.70883692 | X25: =('Opening Values'!$E$26*rpi_12/rpi_06)/'Opening Values'!$E$27+('Opening Values'!$F$26*rpi_12/rpi_06)/'Opening Values'!$F$27+('Opening Values'!$G$26*rpi/rpi_06)/'Opening Values'!$G$27 -> 53.70883692 | Y25: =('Opening Values'!$E$26*rpi_12/rpi_06)/'Opening Values'!$E$27+('Opening Values'!$F$26*rpi_12/rpi_06)/'Opening Values'!$F$27+('Opening Values'!$G$26*rpi/rpi_06)/'Opening Values'!$G$27 -> 53.70883692 | Z25: =('Opening Values'!$E$26*rpi_12/rpi_06)/'Opening Values'!$E$27+('Opening Values'!$F$26*rpi_12/rpi_06)/'Opening Values'!$F$27+('Opening Values'!$G$26*rpi/rpi_06)/'Opening Values'!$G$27 -> 53.70883692 | AA25: =('Opening Values'!$E$26*rpi_12/rpi_06)/'Opening Values'!$E$27+('Opening Values'!$F$26*rpi_12/rpi_06)/'Opening Values'!$F$27+('Opening Values'!$G$26*rpi/rpi_06)/'Opening Values'!$G$27 -> 53.70883692 | AB25: =('Opening Values'!$E$26*rpi_12/rpi_06)/'Opening Values'!$E$27+('Opening Values'!$F$26*rpi_12/rpi_06)/'Opening Values'!$F$27+('Opening Values'!$G$26*rpi/rpi_06)/'Opening Values'!$G$27 -> 53.70883692 | AC25: =('Opening Values'!$E$26*rpi_12/rpi_06)/'Opening Values'!$E$27+('Opening Values'!$F$26*rpi_12/rpi_06)/'Opening Values'!$F$27+('Opening Values'!$G$26*rpi/rpi_06)/'Opening Values'!$G$27 -> 53.70883692 | AD25: =('Opening Values'!$E$26*rpi_12/rpi_06)/'Opening Values'!$E$27+('Opening Values'!$F$26*rpi_12/rpi_06)/'Opening Values'!$F$27+('Opening Values'!$G$26*rpi/rpi_06)/'Opening Values'!$G$27 -> 53.70883692 | AE25: =('Opening Values'!$F$26*rpi_12/rpi_06)/'Opening Values'!$F$27 -> 23.47391712 | AF25: =('Opening Values'!$F$26*rpi_12/rpi_06)/'Opening Values'!$F$27 -> 23.47391712
A26: Mains (40 years straight line) | E26: =SUM($C$18:E$18) -> 66.54108228 | F26: =SUM($C$18:F$18) -> 133.11113 | G26: =SUM($C$18:G$18) -> 200.688537 | H26: =SUM($C$18:H$18) -> 270.3134998 | I26: =SUM($C$18:I$18) -> 337.713189 | J26: =SUM($C$18:J$18) -> 406.6553967 | K26: =SUM($C$18:K$18) -> 476.6175152 | L26: =SUM($C$18:L$18) -> 516.7663865 | M26: =SUM($C$18:M$18) -> 619.2302577 | N26: =SUM($C$18:N$18) -> 667.988055 | O26: =SUM($C$18:O$18) -> 703.3930143 | P26: =SUM($C$18:P$18) -> 787.5570616 | Q26: =SUM($C$18:Q$18) -> 820.7361089 | R26: =SUM($C$18:R$18) -> 853.9151562 | S26: =SUM($C$18:S$18) -> 887.0942035 | T26: =SUM($C$18:T$18) -> 920.2732508 | U26: =SUM($C$18:U$18) -> 953.4522981 | V26: =SUM($C$18:V$18) -> 986.6313453 | W26: =SUM($C$18:W$18) -> 1019.810393 | X26: =SUM($C$18:X$18) -> 1052.98944 | Y26: =SUM($C$18:Y$18) -> 1086.168487 | Z26: =SUM($C$18:Z$18) -> 1119.347535 | AA26: =SUM($C$18:AA$18) -> 1152.526582 | AB26: =SUM($C$18:AB$18) -> 1185.705629 | AC26: =SUM($C$18:AC$18) -> 1218.884676 | AD26: =SUM($C$18:AD$18) -> 1252.063724 | AE26: =SUM($C$18:AE$18) -> 1285.242771 | AF26: =SUM($C$18:AF$18) -> 1318.421818 | AG26: =SUM($C$18:AG$18) -> 1351.600866 | AH26: =SUM($C$18:AH$18) -> 1384.779913 | AI26: =SUM($C$18:AI$18) -> 1417.95896 | AJ26: =SUM($C$18:AJ$18) -> 1451.138007 | AK26: =SUM($C$18:AK$18) -> 1484.317055 | AL26: =SUM($C$18:AL$18) -> 1517.496102 | AM26: =SUM($C$18:AM$18) -> 1550.675149
A27: Services (35 years straight line) | E27: =SUM($C$19:E19) -> 139.6394361 | F27: =SUM($C$19:F19) -> 265.5390847 | G27: =SUM($C$19:G19) -> 446.6786847 | H27: =SUM($C$19:H19) -> 630.5182847 | I27: =SUM($C$19:I19) -> 816.5178847 | J27: =SUM($C$19:J19) -> 996.6419538 | K27: =SUM($C$19:K19) -> 1176.773014 | L27: =SUM($C$19:L19) -> 1360.748997 | M27: =SUM($C$19:M19) -> 1544.732212 | N27: =SUM($C$19:N19) -> 1721.776775 | O27: =SUM($C$19:O19) -> 1898.827942 | P27: =SUM($C$19:P19) -> 2075.885625 | Q27: =SUM($C$19:Q19) -> 2228.549514 | R27: =SUM($C$19:R19) -> 2381.217679 | S27: =SUM($C$19:S19) -> 2533.890077 | T27: =SUM($C$19:T19) -> 2686.566665 | U27: =SUM($C$19:U19) -> 2839.247402 | V27: =SUM($C$19:V19) -> 2991.932251 | W27: =SUM($C$19:W19) -> 3144.621174 | X27: =SUM($C$19:X19) -> 3297.314137 | Y27: =SUM($C$19:Y19) -> 3450.011104 | Z27: =SUM($C$19:Z19) -> 3602.712044 | AA27: =SUM($C$19:AA19) -> 3755.416926 | AB27: =SUM($C$19:AB19) -> 3908.12572 | AC27: =SUM($C$19:AC19) -> 4060.838399 | AD27: =SUM($C$19:AD19) -> 4122.354624 | AE27: =SUM($C$19:AE19) -> 4183.874681 | AF27: =SUM($C$19:AF19) -> 4245.398544 | AG27: =SUM($C$19:AG19) -> 4306.92619 | AH27: =SUM($C$19:AH19) -> 4368.457596 | AI27: =SUM(E19:AI19) -> 4429.992741 | AJ27: =SUM(E19:AJ19) -> 4491.531604 | AK27: =SUM(E19:AK19) -> 4553.070467 | AL27: =SUM(E19:AL19) -> 4614.60933 | AM27: =SUM(E19:AM19) -> 4676.148193
A28: Meters (15 years straight line) | E28: =SUM($C$20:E20) -> 163.8766667 | F28: =SUM($C$20:F20) -> 319.404258 | G28: =SUM($C$20:G20) -> 495.4447914 | H28: =SUM($C$20:H20) -> 680.1035247 | I28: =SUM($C$20:I20) -> 859.592858 | J28: =SUM($C$20:J20) -> 1171.510758 | K28: =SUM($C$20:K20) -> 1478.798877 | L28: =SUM($C$20:L20) -> 1800.007822 | M28: =SUM($C$20:M20) -> 2130.511416 | N28: =SUM($C$20:N20) -> 2458.813697 | O28: =SUM(E20:O20) -> 2926.130747 | P28: =SUM(E20:P20) -> 3400.51322 | Q28: =SUM(E20:Q20) -> 3807.257882 | R28: =SUM(E20:R20) -> 4203.929941 | S28: =SUM(E20:S20) -> 4554.819936 | T28: 4727.125503 | U28: 4853.261326 | V28: 4968.186667 | W28: 5066.225446 | X28: 5202.022205 | Y28: 5221.150291 | Z28: 5221.746964 | AA28: 5199.809243 | AB28: 5165.720037 | AC28: 5129.990575 | AD28: 4880.62506 | AE28: 4624.117737 | AF28: 4439.1118 | AG28: 4264.102493 | AH28: 4131.45494 | AI28: 4013.439585 | AJ28: 3949.86769 | AK28: 3876.993334 | AL28: =SUM(X20:AL20) -> 3812.387341 | AM28: 3715.192768
A29: Other | E29: =SUM($C$21:E21) -> 79.39147927 | F29: =SUM($C$21:F21) -> 159.0277206 | G29: =SUM($C$21:G21) -> 183.7458361 | H29: =SUM($C$21:H21) -> 208.9066285 | I29: =SUM($C$21:I21) -> 234.4215625 | J29: =SUM($C$21:J21) -> 259.5766393 | K29: =SUM($C$21:K21) -> 284.8343189 | L29: =SUM($C$21:L21) -> 307.4471045 | M29: =SUM($C$21:M21) -> 330.0605229 | N29: =SUM($C$21:N21) -> 351.3698269 | O29: =SUM($C$21:O21) -> 372.6797088 | P29: =SUM($C$21:P21) -> 393.9901608 | Q29: =SUM($C$21:Q21) -> 413.1661558 | R29: =SUM($C$21:R21) -> 432.342525 | S29: =SUM($C$21:S21) -> 451.5192645 | T29: =SUM($C$21:T21) -> 470.6963707 | U29: =SUM($C$21:U21) -> 489.87384 | V29: =SUM($C$21:V21) -> 509.051669 | W29: =SUM($C$21:W21) -> 528.2298545 | X29: =SUM($C$21:X21) -> 547.4083934 | Y29: =SUM($C$21:Y21) -> 566.5872828 | Z29: =SUM($C$21:Z21) -> 585.7665198 | AA29: =SUM($C$21:AA21) -> 604.9461017 | AB29: =SUM($C$21:AB21) -> 624.1260259 | AC29: =SUM($C$21:AC21) -> 643.30629 | AD29: =SUM($C$21:AD21) -> 654.5068644 | AE29: =SUM($C$21:AE21) -> 665.7077741 | AF29: =SUM($C$21:AF21) -> 676.9090169 | AG29: =SUM($C$21:AG21) -> 688.1105906 | AH29: =SUM($C$21:AH21) -> 699.3124934 | AI29: =SUM($C$21:AI21) -> 710.5147233 | AJ29: =SUM($C$21:AJ21) -> 721.7172786 | AK29: =SUM($C$21:AK21) -> 732.9198338 | AL29: =SUM($C$21:AL21) -> 744.1223891 | AM29: =SUM($C$21:AM21) -> 755.3249443
A30: Total Depreciation | E30: =SUM(E24:E29) -> 11889.6084 | F30: =SUM(F24:F29) -> 12317.24193 | G30: =SUM(G24:G29) -> 12781.94963 | H30: =SUM(H24:H29) -> 13268.70763 | I30: =SUM(I24:I29) -> 13742.11407 | J30: =SUM(J24:J29) -> 14328.25332 | K30: 14910.8923 | L30: 15478.83888 | M30: 16118.40298 | N30: 16693.81693 | O30: 17394.89998 | P30: 18151.81464 | Q30: 18763.57823 | R30: 19365.27387 | S30: 19921.19205 | T30: 20298.53036 | U30: 20629.70344 | V30: 20949.67051 | W30: 21252.75544 | X30: 21593.60275 | Y30: 21817.78574 | Z30: 22023.44163 | AA30: 22206.56743 | AB30: 22377.54598 | AC30: 22546.88851 | AD30: =SUM(AD24:AD29) -> 22403.41884 | AE30: 22222.57662 | AF30: 22143.47483 | AG30: 22050.89987 | AH30: 22024.16468 | AI30: 22012.06575 | AJ30: =SUM(AJ24:AJ29) -> 22054.41432 | AK30: 22087.46043 | AL30: 22128.7749 | AM30: 10697.34105
A32: Closing DAV | D32: 388965.431 | E32: =E$8+E$15-E$30 -> 390258.6553 | F32: 390529.0665 | G32: 390785.0009 | H32: 391098.8384 | I32: 390605.6985 | J32: 391024.4475 | K32: 390836.256 | L32: 389125.177 | M32: 389406.832 | N32: 386636.793 | O32: 384717.0333 | P32: 384096.9546 | Q32: 378871.9842 | R32: 372894.3936 | S32: 365674.3169 | T32: 357856.4467 | U32: 348889.781 | V32: 339742.8433 | W32: 330168.9522 | X32: 320743.198 | Y32: 311329.8134 | Z32: 301363.5079 | AA32: 291085.0249 | AB32: 280592.8613 | AC32: 269873.8813 | AD32: 254667.9883 | AE32: 239641.9391 | AF32: 224753.092 | AG32: 209955.8259 | AH32: 195134.135 | AI32: 180323.5536 | AJ32: 165469.6364 | AK32: 150582.6731 | AL32: 135654.3953 | AM32: 132157.5513

Sheet Pi's Calc
A1: PNGL 'P' Tariff Model - Calculation of Pi tariffs, Allowed Revenues, PA and TRV
D2: Return
D3: To 2016 | E3: 0.075
A4: p | B4: £2012 | D4: Post 2016 | E4: 0.0483
B5: £'000
A6: Real Return pa | D6: =E3 -> 0.075 | E6: =D6 -> 0.075 | F6: =E6 -> 0.075 | G6: =E4 -> 0.0483 | H6: =G6 -> 0.0483 | I6: =H6 -> 0.0483 | J6: 0.0483 | K6: 0.0483 | L6: 0.0483 | M6: 0.0483 | N6: 0.0483 | O6: 0.0483 | P6: 0.0483 | Q6: 0.0483 | R6: 0.0483 | S6: 0.0483 | T6: 0.0483 | U6: 0.0483 | V6: 0.0483 | W6: 0.0483 | X6: 0.0483 | Y6: 0.0483 | Z6: =Y6 -> 0.0483 | AA6: =Z6 -> 0.0483 | AB6: =AA6 -> 0.0483 | AC6: =AB6 -> 0.0483 | AD6: =AC6 -> 0.0483 | AE6: =AD6 -> 0.0483 | AF6: =AE6 -> 0.0483 | AG6: =AF6 -> 0.0483 | AH6: =AG6 -> 0.0483 | AI6: =AH6 -> 0.0483 | AJ6: 0.0483
A7: Discount Factor (Yr End) | C7: 1 | D7: =C7/(1+D6) -> 0.9302325581 | E7: 0.8653326122 | F7: 0.8049605695 | G7: 0.7678723357 | H7: 0.7324929273 | I7: 0.6987436109 | J7: 0.6665492806 | K7: 0.6358382912 | L7: 0.6065422982 | M7: 0.5785961062 | N7: 0.5519375238 | O7: 0.5265072249 | P7: 0.5022486167 | Q7: 0.4791077141 | R7: 0.4570330193 | S7: 0.4359754071 | T7: 0.4158880159 | U7: 0.3967261432 | V7: 0.3784471461 | W7: 0.3610103463 | X7: 0.3443769401 | Y7: 0.3285099114 | Z7: 0.3133739496 | AA7: 0.2989353712 | AB7: 0.2851620445 | AC7: 0.2720233182 | AD7: 0.2594899534 | AE7: 0.2475340584 | AF7: 0.2361290264 | AG7: 0.2252494767 | AH7: 0.2148711979 | AI7: 0.204971094 | AJ7: 0.1955271335
G10: IMPORTANT NOTE: Values from 2017 Onwards are forecasts and will be determined as part of the Next Price Control. This Model is re-run at each Price Control Period, to calculate allowed Revenues.
C11: 2013 | D11: 2014 | E11: =D11+1 -> 2015 | F11: 2016 | G11: 2017 | H11: 2018 | I11: 2019 | J11: 2020 | K11: 2021 | L11: 2022 | M11: 2023 | N11: 2024 | O11: 2025 | P11: 2026 | Q11: 2027 | R11: 2028 | S11: 2029 | T11: 2030 | U11: 2031 | V11: 2032 | W11: 2033 | X11: 2034 | Y11: =X11+1 -> 2035 | Z11: =Y11+1 -> 2036 | AA11: 2037 | AB11: 2038 | AC11: 2039 | AD11: 2040 | AE11: 2041 | AF11: 2042 | AG11: 2043 | AH11: 2044 | AI11: 2045 | AJ11: =AI11+1 -> 2046
A13: Capex | D13: 12672.3149 | E13: 12995.6972 | F13: 12918.91093 | G13: 14747.0023 | H13: 14722.70081 | I13: 13767.75985 | J13: 16400.05802 | K13: 13923.77797 | L13: 15475.14025 | M13: 17531.73597 | N13: 13538.60775 | O13: 13387.68334 | P13: 12701.11531 | Q13: 12480.66022 | R13: 11663.03768 | S13: 11802.73288 | T13: 11678.8643 | U13: 12167.84851 | V13: 12404.40112 | W13: 12057.13615 | X13: 11928.08442 | Y13: 11885.38247 | Z13: 11827.90847 | AA13: 7197.5258 | AB13: 7196.527508 | AC13: 7254.627695 | AD13: 7253.633722 | AE13: 7202.473856 | AF13: 7201.484338 | AG13: 7200.497094 | AH13: 7200.497094 | AI13: 7200.497094 | AJ13: 7200.497094
A14: Opex | D14: 13749.93075 | E14: 14041.78004 | F14: 14197.2106 | G14: 13406.5745 | H14: 13448.13253 | I14: 13745.04493 | J14: 14020.94007 | K14: 14110.39844 | L14: 14412.78169 | M14: 14568.57146 | N14: 14537.82892 | O14: 14595.98924 | P14: 14587.67778 | Q14: 15057.84598 | R14: 15169.27656 | S14: 15322.52464 | T14: 15569.54616 | U14: 15765.5614 | V14: 16118.1323 | W14: 16169.73232 | X14: 16143.77286 | Y14: 16243.15197 | Z14: 16350.44893 | AA14: 15887.13662 | AB14: 16087.74349 | AC14: 16208.03587 | AD14: 16456.82474 | AE14: 16594.21406 | AF14: 16848.06755 | AG14: 16852.25975 | AH14: 16852.05159 | AI14: 16851.84134 | AJ14: 16851.62899
A15: Volumes (therms '000) | D15: =[4]Inputs!E11 -> 135320.3407 | E15: =[4]Inputs!F11 -> 139809.2282 | F15: =[4]Inputs!G11 -> 144470.6593 | G15: =[4]Inputs!H11 -> 148932.6045 | H15: =[4]Inputs!I11 -> 153199.03 | I15: =[4]Inputs!J11 -> 157292.3711 | J15: =[4]Inputs!K11 -> 161225.4297 | K15: =[4]Inputs!L11 -> 164461.4191 | L15: =[4]Inputs!M11 -> 167884.921 | M15: =[4]Inputs!N11 -> 168082.8084 | N15: =[4]Inputs!O11 -> 171003.3958 | O15: =[4]Inputs!P11 -> 173744.5889 | P15: =[4]Inputs!Q11 -> 176485.7821 | Q15: =[4]Inputs!R11 -> 179226.9753 | R15: =[4]Inputs!S11 -> 181968.1684 | S15: =[4]Inputs!T11 -> 184709.3616 | T15: =[4]Inputs!U11 -> 187450.5547 | U15: =[4]Inputs!V11 -> 190191.7479 | V15: =[4]Inputs!W11 -> 192932.9411 | W15: =[4]Inputs!X11 -> 195674.1342 | X15: =[4]Inputs!Y11 -> 198415.3274 | Y15: =[4]Inputs!Z11 -> 201156.5205 | Z15: =[4]Inputs!AA11 -> 203897.7137 | AA15: =[4]Inputs!AB11 -> 206253.2839 | AB15: =[4]Inputs!AC11 -> 207837.608 | AC15: =[4]Inputs!AD11 -> 209036.3092 | AD15: =[4]Inputs!AE11 -> 210235.0103 | AE15: =[4]Inputs!AF11 -> 211433.7115 | AF15: =[4]Inputs!AG11 -> 212632.4126 | AG15: =[4]Inputs!AH11 -> 213831.1138 | AH15: =[4]Inputs!AI11 -> 213831.1138 | AI15: =[4]Inputs!AJ11 -> 213831.1138 | AJ15: =[4]Inputs!AK11 -> 213831.1138
A16: £/therm
A17: P Dom (P1) | D17: 0.3765198264 | E17: =D17 -> 0.3765198264 | F17: =E17 -> 0.3765198264 | G17: 0.3765198264 | H17: 0.3765198264 | I17: 0.3765198264 | J17: 0.3765198264 | K17: 0.3765198264 | L17: 0.3765198264 | M17: 0.3765198264 | N17: 0.3765198264 | O17: 0.3765198264 | P17: 0.3765198264 | Q17: 0.3765198264 | R17: 0.3765198264 | S17: 0.3765198264 | T17: 0.3765198264 | U17: 0.3765198264 | V17: 0.3765198264 | W17: 0.3765198264 | X17: 0.3765198264 | Y17: 0.3765198264 | Z17: 0.3765198264 | AA17: 0.3765198264 | AB17: 0.3765198264 | AC17: 0.3765198264 | AD17: 0.3765198264 | AE17: 0.3765198264 | AF17: 0.3765198264 | AG17: 0.3765198264 | AH17: 0.3765198264 | AI17: 0.3765198264 | AJ17: 0.3765198264
A18: P SME (P2) | C18: 0.9 | D18: =$D$17*C18 -> 0.3388678438 | E18: =D18 -> 0.3388678438 | F18: 0.3388678438 | G18: 0.3388678438 | H18: 0.3388678438 | I18: 0.3388678438 | J18: 0.3388678438 | K18: 0.3388678438 | L18: 0.3388678438 | M18: 0.3388678438 | N18: 0.3388678438 | O18: 0.3388678438 | P18: 0.3388678438 | Q18: 0.3388678438 | R18: 0.3388678438 | S18: 0.3388678438 | T18: 0.3388678438 | U18: 0.3388678438 | V18: 0.3388678438 | W18: 0.3388678438 | X18: 0.3388678438 | Y18: 0.3388678438 | Z18: 0.3388678438 | AA18: 0.3388678438 | AB18: 0.3388678438 | AC18: 0.3388678438 | AD18: 0.3388678438 | AE18: 0.3388678438 | AF18: 0.3388678438 | AG18: 0.3388678438 | AH18: 0.3388678438 | AI18: 0.3388678438 | AJ18: 0.3388678438
A19: P Contract (P3 + P4) | C19: 0.6969753071 | D19: =$D$17*C19 -> 0.2624250217 | E19: 0.2624250217 | F19: 0.2624250217 | G19: 0.2624250217 | H19: 0.2624250217 | I19: 0.2624250217 | J19: 0.2624250217 | K19: 0.2624250217 | L19: 0.2624250217 | M19: 0.2624250217 | N19: 0.2624250217 | O19: 0.2624250217 | P19: 0.2624250217 | Q19: 0.2624250217 | R19: 0.2624250217 | S19: 0.2624250217 | T19: 0.2624250217 | U19: 0.2624250217 | V19: 0.2624250217 | W19: 0.2624250217 | X19: 0.2624250217 | Y19: 0.2624250217 | Z19: 0.2624250217 | AA19: 0.2624250217 | AB19: 0.2624250217 | AC19: 0.2624250217 | AD19: 0.2624250217 | AE19: 0.2624250217 | AF19: 0.2624250217 | AG19: 0.2624250217 | AH19: 0.2624250217 | AI19: 0.2624250217 | AJ19: 0.2624250217
A21: Conditions 2.3.15 and 2.3.16 Establishing Best Available Revenue Per Therm and Calculating Cashflow
A23: Allowed Revenue | D23: =SUMPRODUCT(D17:D19,[4]Inputs!E8:E10) -> 44598.99892 | E23: =SUMPRODUCT(E17:E19,[4]Inputs!F8:F10) -> 46265.92869 | F23: =SUMPRODUCT(F17:F19,[4]Inputs!G8:G10) -> 47989.63318 | G23: =SUMPRODUCT(G17:G19,[4]Inputs!H8:H10) -> 49656.16424 | H23: =SUMPRODUCT(H17:H19,[4]Inputs!I8:I10) -> 51248.50841 | I23: =SUMPRODUCT(I17:I19,[4]Inputs!J8:J10) -> 52775.65615 | J23: =SUMPRODUCT(J17:J19,[4]Inputs!K8:K10) -> 54242.78057 | K23: =SUMPRODUCT(K17:K19,[4]Inputs!L8:L10) -> 55494.27889 | L23: =SUMPRODUCT(L17:L19,[4]Inputs!M8:M10) -> 56774.34632 | M23: =SUMPRODUCT(M17:M19,[4]Inputs!N8:N10) -> 56876.06627 | N23: =SUMPRODUCT(N17:N19,[4]Inputs!O8:O10) -> 57972.45226 | O23: =SUMPRODUCT(O17:O19,[4]Inputs!P8:P10) -> 59001.29278 | P23: =SUMPRODUCT(P17:P19,[4]Inputs!Q8:Q10) -> 60030.13329 | Q23: =SUMPRODUCT(Q17:Q19,[4]Inputs!R8:R10) -> 61058.97381 | R23: =SUMPRODUCT(R17:R19,[4]Inputs!S8:S10) -> 62087.81433 | S23: =SUMPRODUCT(S17:S19,[4]Inputs!T8:T10) -> 63116.65485 | T23: =SUMPRODUCT(T17:T19,[4]Inputs!U8:U10) -> 64145.49536 | U23: =SUMPRODUCT(U17:U19,[4]Inputs!V8:V10) -> 65174.33588 | V23: =SUMPRODUCT(V17:V19,[4]Inputs!W8:W10) -> 66203.1764 | W23: =SUMPRODUCT(W17:W19,[4]Inputs!X8:X10) -> 67232.01692 | X23: =SUMPRODUCT(X17:X19,[4]Inputs!Y8:Y10) -> 68260.85743 | Y23: =SUMPRODUCT(Y17:Y19,[4]Inputs!Z8:Z10) -> 69289.69795 | Z23: =SUMPRODUCT(Z17:Z19,[4]Inputs!AA8:AA10) -> 70318.53847 | AA23: =SUMPRODUCT(AA17:AA19,[4]Inputs!AB8:AB10) -> 71202.18428 | AB23: =SUMPRODUCT(AB17:AB19,[4]Inputs!AC8:AC10) -> 71795.44068 | AC23: =SUMPRODUCT(AC17:AC19,[4]Inputs!AD8:AD10) -> 72243.50237 | AD23: =SUMPRODUCT(AD17:AD19,[4]Inputs!AE8:AE10) -> 72691.56407 | AE23: =SUMPRODUCT(AE17:AE19,[4]Inputs!AF8:AF10) -> 73139.62576 | AF23: =SUMPRODUCT(AF17:AF19,[4]Inputs!AG8:AG10) -> 73587.68746 | AG23: =SUMPRODUCT(AG17:AG19,[4]Inputs!AH8:AH10) -> 74035.74915 | AH23: =SUMPRODUCT(AH17:AH19,[4]Inputs!AI8:AI10) -> 74035.74915 | AI23: =SUMPRODUCT(AI17:AI19,[4]Inputs!AJ8:AJ10) -> 74035.74915 | AJ23: =SUMPRODUCT(AJ17:AJ19,[4]Inputs!AK8:AK10) -> 74035.74915
A24: Capex | D24: =-D13 -> -12672.3149 | E24: =-E13 -> -12995.6972 | F24: -12918.91093 | G24: -14747.0023 | H24: -14722.70081 | I24: -13767.75985 | J24: -16400.05802 | K24: -13923.77797 | L24: -15475.14025 | M24: -17531.73597 | N24: -13538.60775 | O24: -13387.68334 | P24: -12701.11531 | Q24: -12480.66022 | R24: -11663.03768 | S24: -11802.73288 | T24: -11678.8643 | U24: -12167.84851 | V24: -12404.40112 | W24: -12057.13615 | X24: -11928.08442 | Y24: -11885.38247 | Z24: =-Z13 -> -11827.90847 | AA24: -7197.5258 | AB24: -7196.527508 | AC24: -7254.627695 | AD24: -7253.633722 | AE24: -7202.473856 | AF24: -7201.484338 | AG24: -7200.497094 | AH24: -7200.497094 | AI24: -7200.497094 | AJ24: -7200.497094
A25: Opex | D25: =-D14 -> -13749.93075 | E25: -14041.78004 | F25: -14197.2106 | G25: -13406.5745 | H25: -13448.13253 | I25: -13745.04493 | J25: -14020.94007 | K25: -14110.39844 | L25: -14412.78169 | M25: -14568.57146 | N25: -14537.82892 | O25: -14595.98924 | P25: -14587.67778 | Q25: -15057.84598 | R25: -15169.27656 | S25: -15322.52464 | T25: -15569.54616 | U25: -15765.5614 | V25: -16118.1323 | W25: -16169.73232 | X25: -16143.77286 | Y25: -16243.15197 | Z25: =-Z14 -> -16350.44893 | AA25: -15887.13662 | AB25: -16087.74349 | AC25: -16208.03587 | AD25: -16456.82474 | AE25: -16594.21406 | AF25: -16848.06755 | AG25: -16852.25975 | AH25: -16852.05159 | AI25: -16851.84134 | AJ25: -16851.62899
A26: Capex Creditor | D26: 14.11029457 | E26: 53.89705043 | F26: -12.79771279 | G26: 304.6818956 | H26: -4.050248315 | I26: -159.1568272 | J26: 438.7163621 | K26: -412.7133426 | L26: 258.5603802 | M26: 342.7659537 | N26: -665.521369 | O26: -25.15406984 | P26: -114.4280041 | Q26: -36.74251537 | R26: -136.2704226 | S26: 23.28253317 | T26: -20.64476303 | U26: 81.49736777 | V26: 39.42543415 | W26: -57.87749422 | X26: -21.50862234 | Y26: -7.116990621 | Z26: -9.579000529 | AA26: -771.7304448 | AB26: -0.1663819885 | AC26: 9.683364473 | AD26: -0.1656620643 | AE26: -8.526644465 | AF26: -0.1649196485 | AG26: -0.1645406924 | AH26: 0 | AI26: 0 | AJ26: 0
A27: Working Capital Adjustment | D27: 313.5754974 | E27: -215.6051977 | F27: -239.6057767 | G27: -346.2989737 | H27: -233.8828964 | I27: -193.4573286 | J27: -187.0195716 | K27: -172.0227341 | L27: -155.7241258 | M27: 3.436781096 | N27: -168.1470037 | O27: -147.3468388 | P27: -155.3234531 | Q27: -97.90589348 | R27: -140.9544085 | S27: -135.9363075 | T27: -124.6834953 | U27: -130.8042488 | V27: -112.01757 | W27: -148.1340749 | X27: -157.4412128 | Y27: -142.4005846 | Z27: -141.4504426 | AA27: -188.1443486 | AB27: -64.91563492 | AC27: -52.77416961 | AD27: -37.35458966 | AE27: -50.72253539 | AF27: -36.74683533 | AG27: -66.7061893 | AH27: -0.024980267 | AI27: -0.02522959474 | AJ27: -0.02548141102
A28: Allowed Capex Overspend | D28: =-'Opening Values'!E26/rpi_06*rpi -> -365.5690326 | E28: =-'Opening Values'!F26/rpi_06*rpi -> -586.847928 | F28: =-'Opening Values'!G26/rpi_06*rpi -> -330.0632892
A30: Cashflows | D30: =SUM(D23:D29) -> 18138.87004 | E30: =SUM(E23:E29) -> 18479.89537 | F30: 20291.04487 | G30: 21460.97036 | H30: 22839.74192 | I30: 24910.23722 | J30: 24073.47927 | K30: 26875.36641 | L30: 26989.26064 | M30: 25121.96158 | N30: 29062.34721 | O30: 30845.11929 | P30: 32471.58875 | Q30: 33385.8192 | R30: 34978.27526 | S30: 35878.74355 | T30: 36751.75664 | U30: 37191.61909 | V30: 37608.05085 | W30: 38799.13688 | X30: 40010.05032 | Y30: 41011.64594 | Z30: 41989.15163 | AA30: 47157.64707 | AB30: 48446.08766 | AC30: 48737.74801 | AD30: 48943.58536 | AE30: 49283.68867 | AF30: 49501.22381 | AG30: 49916.12157 | AH30: 49983.17549 | AI30: 49983.38549 | AJ30: 49983.59758
A34: Discounted Cashflow | C34: =SUM(D34:AJ34) -> 478515.5991 | D34: =D30*D7 -> 16873.36747 | E34: 15991.25614 | F34: 16333.49103 | G34: 16479.28544 | H34: 16729.94942 | I34: 17405.8691 | J34: 16046.16029 | K34: 17088.38705 | L34: 16370.12818 | M34: 14535.46915 | N34: 16040.59996 | O34: 16240.17816 | P34: 16308.81053 | Q34: 15995.40352 | R34: 15986.22675 | S34: 15642.24983 | T34: 15284.61515 | U34: 14754.8876 | V34: 14232.65951 | W34: 14006.88984 | X34: 13778.5387 | Y34: 13472.73217 | Z34: 13158.30629 | AA34: 14097.08873 | AB34: 13814.9854 | AC34: 13257.80393 | AD34: 12700.36869 | AE34: 12199.39147 | AF34: 11688.67579 | AG34: 11243.58026 | AH34: 10739.94479 | AI34: 10245.14921 | AJ34: 9773.149556
A38: Closing DAV | D38: =DAV!G32 -> 390785.0009 | E38: =DAV!H32 -> 391098.8384 | F38: =DAV!I32 -> 390605.6985 | G38: =DAV!J32 -> 391024.4475 | H38: =DAV!K32 -> 390836.256 | I38: =DAV!L32 -> 389125.177 | J38: =DAV!M32 -> 389406.832 | K38: =DAV!N32 -> 386636.793 | L38: =DAV!O32 -> 384717.0333 | M38: =DAV!P32 -> 384096.9546 | N38: =DAV!Q32 -> 378871.9842 | O38: =DAV!R32 -> 372894.3936 | P38: =DAV!S32 -> 365674.3169 | Q38: =DAV!T32 -> 357856.4467 | R38: =DAV!U32 -> 348889.781 | S38: =DAV!V32 -> 339742.8433 | T38: =DAV!W32 -> 330168.9522 | U38: =DAV!X32 -> 320743.198 | V38: =DAV!Y32 -> 311329.8134 | W38: =DAV!Z32 -> 301363.5079 | X38: =DAV!AA32 -> 291085.0249 | Y38: =DAV!AB32 -> 280592.8613 | Z38: =DAV!AC32 -> 269873.8813 | AA38: =DAV!AD32 -> 254667.9883 | AB38: =DAV!AE32 -> 239641.9391 | AC38: =DAV!AF32 -> 224753.092 | AD38: =DAV!AG32 -> 209955.8259 | AE38: =DAV!AH32 -> 195134.135 | AF38: =DAV!AI32 -> 180323.5536 | AG38: =DAV!AJ32 -> 165469.6364 | AH38: =DAV!AK32 -> 150582.6731 | AI38: =DAV!AL32 -> 135654.3953 | AJ38: =DAV!AM32 -> 132157.5513
A42: TRV | C42: =-'Opening Values'!D18 -> -503588.9069
A43: Discounted DAV2046 | C43: =AJ38*$AJ$7 -> 25840.38717
A44: Discounted Capital Creditors (CC2046) | C44: =AJ64*AJ7 -> -691.1498866
A45: Discounted Working Capital Adjustment (Q2046) | C45: =AJ66*AJ7 -> -75.92954585
A46: Backsolve to 0 by running Macro Ctrl + q | C46: =SUM(C34:C45) -> -2.1547919e-10
A50: Condition 2.3.18 Calculating TRV
B52: Total Regulatory Value (TRV) | F52: =F62+F64+F66+F68 -> 564488.2612 | K52: =K62+K64+K66+K68 -> 582917.3016 | P52: =P62+P64+P66+P68 -> 579684.9315 | U52: =U62+U64+U66+U68 -> 538110.6734 | Z52: =Z62+Z64+Z66+Z68 -> 462174.4907 | AE52: =AE62+AE64+AE66+AE68 -> 318193.8189 | AJ52: =AJ62+AJ64+AJ66+AJ68 -> 128234.4158
A56: Condition 2.3.19 Calculating Profile Adjustment
B58: Adjusted Cashflows | D58: =D30*(1+$F$6)^($F$11-D11) -> 20961.73168 | E58: =E30*(1+$F$6)^($F$11-E11) -> 19865.88753 | F58: =F30*(1+$F$6)^($F$11-F11) -> 20291.04487 | G58: =G30*(1+$K$6)^($K$11-G11) -> 25917.4159 | H58: =H30*(1+$K$6)^($K$11-H11) -> 26311.6419 | I58: =I30*(1+$K$6)^($K$11-I11) -> 27374.67898 | J58: =J30*(1+$K$6)^($K$11-J11) -> 25236.22831 | K58: =K30*(1+$K$6)^($K$11-K11) -> 26875.36641 | L58: =L30*(1+$P$6)^($P$11-L11) -> 32593.67499 | M58: =M30*(1+$P$6)^($P$11-M11) -> 28940.78483 | N58: =N30*(1+$P$6)^($P$11-N11) -> 31937.56921 | O58: =O30*(1+$P$6)^($P$11-O11) -> 32334.93855 | P58: =P30*(1+$P$6)^($P$11-P11) -> 32471.58875 | Q58: =Q30*(1+$U$6)^($U$11-Q11) -> 40318.5013 | R58: =R30*(1+$U$6)^($U$11-R11) -> 40295.37005 | S58: =S30*(1+$U$6)^($U$11-S11) -> 39428.33134 | T58: =T30*(1+$U$6)^($U$11-T11) -> 38526.86649 | U58: =U30*(1+$U$6)^($U$11-U11) -> 37191.61909 | V58: =V30*(1+$Z$6)^($Z$11-V11) -> 45417.49412 | W58: =W30*(1+$Z$6)^($Z$11-W11) -> 44697.046 | X58: =X30*(1+$Z$6)^($Z$11-X11) -> 43968.36023 | Y58: =Y30*(1+$Z$6)^($Z$11-Y11) -> 42992.50843 | Z58: =Z30*(1+$Z$6)^($Z$11-Z11) -> 41989.15163 | AA58: =AA30*(1+$AE$6)^($AE$11-AA11) -> 56950.09738 | AB58: =AB30*(1+$AE$6)^($AE$11-AB11) -> 55810.44278 | AC58: =AC30*(1+$AE$6)^($AE$11-AC11) -> 53559.51427 | AD58: =AD30*(1+$AE$6)^($AE$11-AD11) -> 51307.56053 | AE58: =AE30*(1+$AE$6)^($AE$11-AE11) -> 49283.68867 | AF58: =AF30*(1+$AJ$6)^($AJ$11-AF11) -> 59780.32603 | AG58: =AG30*(1+$AJ$6)^($AJ$11-AG11) -> 57503.93853 | AH58: =AH30*(1+$AJ$6)^($AJ$11-AH11) -> 54928.15549 | AI58: =AI30*(1+$AJ$6)^($AJ$11-AI11) -> 52397.58301 | AJ58: =AJ30*(1+$AJ$6)^($AJ$11-AJ11) -> 49983.59758
B60: Closing TRV (Incl Return) | C60: ='Opening Values'!D18 -> 503588.9069 | F60: =-$C$60*(1+F6)^(F11-C11) -> -625606.9253 | K60: =-F52*(1+K6)^(K11-F11) -> -714632.6331 | P60: =-K52*(1+P6)^(P11-K11) -> -737963.4878 | U60: =-P52*(1+U6)^(U11-P11) -> -733871.3617 | Z60: =-U52*(1+Z6)^(Z11-U11) -> -681239.0511 | AE60: =-Z52*(1+AE6)^(AE11-Z11) -> -585105.1225 | AJ60: =-AE52*(1+AJ6)^(AJ11-AE11) -> -402828.0165
B62: DAV | F62: =F38 -> 390605.6985 | K62: =K38 -> 386636.793 | P62: =P38 -> 365674.3169 | U62: =U38 -> 320743.198 | Z62: =Z38 -> 269873.8813 | AE62: 195134.135 | AJ62: 132157.5513
B64: CC | F64: -4487.871914 | K64: -4655.349754 | P64: -4451.572644 | U64: -4362.694844 | Z64: -4306.038171 | AE64: -3535.132402 | AJ64: -3534.802942
B66: Q | F66: -3973.286904 | K66: -2840.6054 | P66: -2217.50076 | U66: -1587.216406 | Z66: -885.7725212 | AE66: -491.861243 | AJ66: -388.3325271
B68: Calculated PA | F68: =-SUM(D58:F67) -> 182343.7215 | K68: =-SUM(G58:K67) -> 203776.4637 | P68: =-SUM(L58:P67) -> 220679.688 | U68: =-SUM(Q58:U67) -> 223317.3867 | Z68: =-SUM(V58:Z67) -> 197492.4201 | AE68: =-SUM(AA58:AE67) -> 127086.6775 | AJ68: =-SUM(AF58:AJ67) -> -1.413468453e-09
B69: Check | F69: =SUM(D58:F68) -> 0 | K69: =SUM(G58:K68) -> 0 | P69: =SUM(L58:P68) -> 0 | U69: =SUM(Q58:U68) -> 0 | Z69: =SUM(V58:Z68) -> 0 | AE69: =SUM(AA58:AE68) -> 0 | AJ69: =SUM(AF58:AJ68) -> 0
